[Event "8th Montevideo Open 2025"]
[Site "Montevideo"]
[Date "2025.02.01"]
[Round "1.20"]
[White "Sei Fong, Ken"]
[Black "Meza, Anahi"]
[Result "0-1"]
[Annotator "NA RC"]
[ECO "B20"]
[WhiteElo "1739"]
[BlackElo "2038"]
[PlyCount "80"]
[EventDate "2025.02.01"]
[EventType "swiss"]
[EventCountry "URU"]
[SourceTitle "playchess.com"]
[Source "ChessBase"]
[SourceQuality "1"]
[TimeControl "5400+30"]

1. e4 {[%emt 0:02:56]} c5 {[%emt 0:00:08]} 2. Bc4 {[%emt 0:00:36]} e6 {[%emt 0:00:57]} 3. Nc3 {[%emt 0:00:19]} Nc6 {[%emt 0:01:14]} 4. Nf3 {[%emt 0:00:25]} a6 {[%emt 0:00:53]} 5. a4 {[%emt 0:01:26]} Nf6 {[%emt 0:01:49]} 6. d4 {[%emt 0:04:09]} d5 {[%emt 0:12:35]} 7. exd5 {[%emt 0:08:06]} exd5 {[%emt 0:00:09]} 8. Be2 {[%emt 0:02:15]} c4 {[%emt 0:01:27]} 9. O-O {[%emt 0:00:19]} Be7 {[%emt 0:07:37]} 10. Ne5 {[%emt 0:02:49]} O-O {[%emt 0:02:13]} 11. Be3 {[%emt 0:05:54]} Ne8 {[%emt 0:15:19]} 12. Nb1 {[%emt 0:00:33]} f6 {[%emt 0:05:51]} 13. Nxc6 {[%emt 0:03:10]} bxc6 {[%emt 0:00:03]} 14. b3 {[%emt 0:00:12]} cxb3 {[%emt 0:02:10]} 15. cxb3 {[%emt 0:00:08]} a5 {[%emt 0:01:42]} 16. Qc2 {[%emt 0:00:32]} Ba6 {[%emt 0:05:57]} 17. Nc3 {[%emt 0:03:54]} Qd7 {[%emt 0:12:32]} 18. Rfd1 {[%emt 0:09:00]} Nd6 {[%emt 0:04:05]} 19. Bf4 {[%emt 0:10:01]} Bxe2 {[%emt 0:02:41]} 20. Qxe2 {[%emt 0:01:20]} Rfe8 {[%emt 0:03:55]} 21. Rd3 {[%emt 0:01:25]} Bf8 {[%emt 0:01:58]} 22. Qc2 {[%emt 0:02:23]} Ne4 {[%emt 0:02:16]} 23. Ne2 {[%emt 0:02:56]} Rac8 {[%emt 0:03:26]} 24. f3 {[%emt 0:04:48]} Nd6 {[%emt 0:00:11]} 25. Ng3 {[%emt 0:00:49]} Nf5 {[%emt 0:01:51]} 26. Nh5 {[%emt 0:02:08]} Qe6 {[%emt 0:03:32]} 27. Bd2 {[%emt 0:01:27]} Bd6 {[%emt 0:03:57]} 28. Bxa5 {[%emt 0:02:06]} Nxd4 {[%emt 0:01:05]} 29. Qd1 {[%emt 0:01:32]} Ne2+ {[%emt 0:00:39]} 30. Kh1 {[%emt 0:00:51]} Qe5 {[%emt 0:00:30]} 31. Ng3 {[%emt 0:02:51]} Nxg3+ {[%emt 0:00:08]} 32. hxg3 {[%emt 0:00:05]} Qxg3 {[%emt 0:00:03]} 33. f4 {[%emt 0:00:06]} Qh4+ {[%emt 0:01:12]} 34. Rh3 {[%emt 0:00:20]} Qxf4 {[%emt 0:00:05]} 35. Qh5 {[%emt 0:01:26]} h6 {[%emt 0:00:49]} 36. Rd1 {[%emt 0:00:32]} Re5 {[%emt 0:00:46]} 37. Qg6 {[%emt 0:01:07]} Rg5 {[%emt 0:00:28]} 38. Qc2 {[%emt 0:00:36]} Rg3 {[%emt 0:01:06]} 39. Rh2 {[%emt 0:01:57]} Rc3 {[%emt 0:01:09]} 40. g3 {[%emt 0:00:44]} Qf3+ {[%emt 0:00:05]} 0-1

[Event "8th Montevideo Open 2025"]
[Site "Montevideo"]
[Date "2025.02.01"]
[Round "1.21"]
[White "Saralegui, Mario"]
[Black "Ferrari, Carlos"]
[Result "1-0"]
[Annotator "NA RC"]
[ECO "D46"]
[WhiteElo "2034"]
[BlackElo "1735"]
[PlyCount "77"]
[EventDate "2025.02.01"]
[EventType "swiss"]
[EventCountry "URU"]
[SourceTitle "playchess.com"]
[Source "ChessBase"]
[SourceQuality "1"]
[TimeControl "5400+30"]

1. d4 {[%emt 0:00:52]} d5 {[%emt 0:00:27]} 2. c4 {[%emt 0:00:09]} e6 {[%emt 0:00:24]} 3. Nc3 {[%emt 0:00:07]} c6 {[%emt 0:00:14]} 4. e3 {[%emt 0:00:32]} Nf6 {[%emt 0:00:21]} 5. Nf3 {[%emt 0:00:13]} Be7 {[%emt 0:00:27]} 6. Bd3 {[%emt 0:00:10]} Nbd7 {[%emt 0:00:19]} 7. O-O {[%emt 0:00:10]} O-O {[%emt 0:00:41]} 8. Qc2 {[%emt 0:00:53]} h6 {[%emt 0:00:22]} 9. e4 {[%emt 0:00:14]} dxe4 {[%emt 0:01:14]} 10. Nxe4 {[%emt 0:00:10]} Nxe4 {[%emt 0:00:44]} 11. Bxe4 {[%emt 0:00:08]} Nf6 {[%emt 0:00:15]} 12. Bd3 {[%emt 0:00:07]} Bd6 {[%emt 0:01:20]} 13. h3 {[%emt 0:00:20]} Qc7 {[%emt 0:00:35]} 14. Re1 {[%emt 0:00:32]} Bd7 {[%emt 0:01:41]} 15. b3 {[%emt 0:00:27]} Rac8 {[%emt 0:00:18]} 16. Bb2 {[%emt 0:00:17]} Rfe8 {[%emt 0:02:07]} 17. Rad1 {[%emt 0:00:16]} b6 {[%emt 0:00:42]} 18. Ne5 {[%emt 0:04:42]} Qd8 {[%emt 0:01:53]} 19. Qe2 {[%emt 0:01:03]} Rc7 {[%emt 0:02:34]} 20. Bb1 {[%emt 0:02:11]} Bc8 {[%emt 0:01:33]} 21. Qc2 {[%emt 0:01:09]} g6 {[%emt 0:01:36]} 22. Bc1 {[%emt 0:08:39]} Bf8 {[%emt 0:01:28]} 23. Bf4 {[%emt 0:00:33]} Bb7 {[%emt 0:03:32]} 24. c5 {[%emt 0:09:06]} Rce7 {[%emt 0:01:15]} 25. cxb6 {[%emt 0:01:10]} Qxb6 {[%emt 0:00:59]} 26. Nxg6 {[%emt 0:04:41]} fxg6 {[%emt 0:02:57]} 27. Qxg6+ {[%emt 0:00:06]} Rg7 {[%emt 0:06:50]} 28. Qxf6 {[%emt 0:00:11]} c5 {[%emt 0:01:37]} 29. g3 {[%emt 0:07:48]} Bf3 {[%emt 0:02:31]} 30. Rc1 {[%emt 0:10:46]} Bd5 {[%emt 0:02:54]} 31. Bxh6 {[%emt 0:02:37]} Ree7 {[%emt 0:00:46]} 32. Bxg7 {[%emt 0:11:32]} Rxg7 {[%emt 0:00:16]} 33. Be4 {[%emt 0:35:09]} Be7 {[%emt 0:01:14]} 34. Qf3 {[%emt 0:00:00]} Rf7 {[%emt 0:02:21]} 35. Qg4+ {[%emt 0:00:00]} Rg7 {[%emt 0:00:21]} 36. Qh5 {[%emt 0:00:00]} Bxe4 {[%emt 0:01:25]} 37. Rxe4 {[%emt 0:00:00]} cxd4 {[%emt 0:02:28]} 38. Rc8+ {[%emt 0:00:00]} Bf8 {[%emt 0:01:19]} 39. Rf4 {[%emt 0:00:00]} 1-0

[Event "8th Montevideo Open 2025"]
[Site "Montevideo"]
[Date "2025.02.01"]
[Round "1.22"]
[White "Decuadro, German"]
[Black "Manteiga, Franco"]
[Result "0-1"]
[Annotator "NA RC"]
[ECO "B25"]
[WhiteElo "1731"]
[BlackElo "2029"]
[PlyCount "58"]
[EventDate "2025.02.01"]
[EventType "swiss"]
[EventCountry "URU"]
[SourceTitle "playchess.com"]
[Source "ChessBase"]
[SourceQuality "1"]
[TimeControl "5400+30"]

1. e4 {[%emt 0:00:08]} c5 {[%emt 0:00:05]} 2. Nc3 {[%emt 0:00:06]} Nc6 {[%emt 0:00:11]} 3. d3 {[%emt 0:00:14]} e5 {[%emt 0:01:07]} 4. g3 {[%emt 0:00:29]} g6 {[%emt 0:00:23]} 5. Bg2 {[%emt 0:00:06]} Bg7 {[%emt 0:00:07]} 6. Nge2 {[%emt 0:00:22]} Nge7 {[%emt 0:00:30]} 7. Be3 {[%emt 0:00:59]} d6 {[%emt 0:00:10]} 8. O-O {[%emt 0:00:28]} O-O {[%emt 0:01:14]} 9. Qd2 {[%emt 0:00:28]} Rb8 {[%emt 0:08:54]} 10. a4 {[%emt 0:10:38]} Nd4 {[%emt 0:05:27]} 11. f4 {[%emt 0:08:43]} a6 {[%emt 0:08:18]} 12. Nd1 {[%emt 0:09:35]} Be6 {[%emt 0:21:37]} 13. Nc1 {[%emt 0:04:38]} Qd7 {[%emt 0:02:05]} 14. c3 {[%emt 0:01:24]} Ndc6 {[%emt 0:01:18]} 15. Nf2 {[%emt 0:01:46]} b5 {[%emt 0:06:40]} 16. axb5 {[%emt 0:08:20]} axb5 {[%emt 0:00:12]} 17. h3 {[%emt 0:00:53]} b4 {[%emt 0:03:16]} 18. g4 {[%emt 0:00:35]} f5 {[%emt 0:03:06]} 19. gxf5 {[%emt 0:08:37]} gxf5 {[%emt 0:00:04]} 20. fxe5 {[%emt 0:00:50]} Nxe5 {[%emt 0:01:45]} 21. Bh6 {[%emt 0:00:40]} N7g6 {[%emt 0:05:47]} 22. Bxg7 Qxg7 {[%emt 0:00:03]} 23. d4 {[%emt 0:05:53]} Nh4 {[%emt 0:02:38]} 24. Ng4 {[%emt 0:07:44]} fxg4 {[%emt 0:00:31]} 25. dxe5 {[%emt 0:01:01]} gxh3 {[%emt 0:00:36]} 26. Ra7 {[%emt 0:08:49]} Rxf1+ {[%emt 0:00:25]} 27. Kxf1 {[%emt 0:00:21]} hxg2+ {[%emt 0:00:12]} 28. Ke2 {[%emt 0:02:46]} Bc4+ {[%emt 0:01:55]} 29. Nd3 {[%emt 0:01:00]} Qg4+ {[%emt 0:00:09]} 0-1

[Event "8th Montevideo Open 2025"]
[Site "Montevideo"]
[Date "2025.02.01"]
[Round "1.23"]
[White "Guerrero, Alvaro"]
[Black "Nakle, Gonzalo"]
[Result "1-0"]
[Annotator "NA RC"]
[ECO "B30"]
[WhiteElo "2028"]
[BlackElo "1726"]
[PlyCount "51"]
[EventDate "2025.02.01"]
[EventType "swiss"]
[EventCountry "URU"]
[SourceTitle "playchess.com"]
[Source "ChessBase"]
[SourceQuality "1"]
[TimeControl "5400+30"]

1. e4 {[%emt 1:31:00]} c5 {[%emt 1:31:00]} 2. d3 {[%emt 0:00:30]} Nc6 {[%emt 0:00:30]} 3. Nf3 {[%emt 0:00:30]} g6 {[%emt 0:00:30]} 4. g3 {[%emt 0:00:30]} Bg7 {[%emt 0:00:30]} 5. Bg2 {[%emt 0:00:30]} Nh6 {[%emt 0:00:30]} 6. h4 {[%emt 0:00:30]} d6 {[%emt 0:00:30]} 7. c3 {[%emt 0:00:30]} Bg4 {[%emt 0:00:30]} 8. Nbd2 {[%emt 0:00:30]} Qc7 {[%emt 0:00:30]} 9. a4 {[%emt 0:00:30]} O-O {[%emt 0:00:30]} 10. O-O {[%emt 0:00:30]} a6 {[%emt 0:00:30]} 11. Nc4 {[%emt 0:00:30]} b5 {[%emt 0:00:30]} 12. Ne3 {[%emt 0:00:30]} f5 {[%emt 0:00:30]} 13. axb5 {[%emt 0:00:30]} Ne5 {[%emt 0:00:30]} 14. Nxg4 {[%emt 0:00:30]} Nhxg4 {[%emt 0:00:30]} 15. Nxe5 {[%emt 0:00:30]} Nxe5 {[%emt 0:00:30]} 16. exf5 {[%emt 0:00:30]} Rxf5 {[%emt 0:00:30]} 17. Bxa8 {[%emt 0:00:30]} e6 {[%emt 0:00:30]} 18. Be4 {[%emt 0:00:30]} Rf8 {[%emt 0:00:30]} 19. bxa6 {[%emt 0:00:30]} d5 {[%emt 0:00:30]} 20. Bg2 {[%emt 0:00:30]} Qa7 {[%emt 0:00:30]} 21. Qe2 {[%emt 0:00:30]} h5 {[%emt 0:00:30]} 22. Bf4 {[%emt 0:00:30]} Ng4 {[%emt 0:00:30]} 23. Qxe6+ {[%emt 0:00:30]} Kh7 {[%emt 0:00:30]} 24. Bxd5 {[%emt 0:00:30]} Bf6 {[%emt 0:00:30]} 25. Ra4 {[%emt 0:00:30]} Qg7 {[%emt 0:00:30]} 26. a7 {[%emt 0:00:30]} 1-0

[Event "8th Montevideo Open 2025"]
[Site "Montevideo"]
[Date "2025.02.01"]
[Round "1.24"]
[White "Comas, Martin"]
[Black "Pichuaga, Juan Pablo"]
[Result "1/2-1/2"]
[Annotator "NA RC"]
[ECO "C00"]
[WhiteElo "1716"]
[BlackElo "1973"]
[PlyCount "43"]
[EventDate "2025.02.01"]
[EventType "swiss"]
[EventCountry "URU"]
[SourceTitle "playchess.com"]
[Source "ChessBase"]
[SourceQuality "1"]
[TimeControl "5400+30"]

1. e4 e6 2. b3 d5 3. Bb2 dxe4 4. Nc3 Nf6 5. Qe2 Be7 6. Nxe4 Nxe4 7. Qxe4 Bf6 8. d4 c5 9. O-O-O Qa5 10. Kb1 Bxd4 11. Bxd4 cxd4 12. Qxd4 O-O 13. Bd3 Nd7 14. Nf3 Qc5 15. Qh4 h6 16. Rhe1 Re8 17. Re4 Qe7 18. Bb5 a6 19. Bxd7 Bxd7 20. Qxe7 Rxe7 21. Ne5 Be8 22. f3 1/2-1/2

[Event "8th Montevideo Open 2025"]
[Site "Montevideo"]
[Date "2025.02.01"]
[Round "2.1"]
[White "Saralegui, Mario"]
[Black "Shoker, Samy"]
[Result "0-1"]
[Annotator "TA"]
[ECO "A61"]
[WhiteElo "2034"]
[BlackElo "2446"]
[PlyCount "110"]
[EventDate "2025.02.01"]
[EventType "swiss"]
[EventCountry "URU"]
[SourceTitle "playchess.com"]
[Source "ChessBase"]
[SourceQuality "1"]
[TimeControl "5400+30"]

{[%evp 18,110,32,31,57,20,40,51,60,15,35,29,66,21,57,31,67,34,66,50,60,41,116,62,67,43,52,37,43,43,43,-19,55,-18,16,-31,17,-68,-18,-21,0,0,0,0,0,0,0,0,0,0,0,0,0,0,0,-54,-56,-58,-20,-66,-82,-82,-17,-82,-59,-112,-119,-131,-87,-125,-128,-147,-105,-138,-125,-95,-108,-102,-115,-197,-108,-110,-111,-128,-134,-274,-141,-43,0,-392,-114,-129,-117,-114,-66]} 1. d4 {[%emt 0:00:11]} Nf6 {[%emt 0:00:15]} 2. c4 {[%emt 0:00:22]} c5 {[%emt 0:00:26]} 3. d5 {[%emt 0:00:33]} e6 {[%emt 0:00:40]} 4. Nc3 {[%emt 0:00:29]} exd5 {[%emt 0:00:11]} 5. cxd5 {[%emt 0:00:15]} g6 {[%emt 0:00:38]} 6. Nf3 {[%emt 0:02:02]} d6 {[%emt 0:00:14]} 7. h3 {[%emt 0:00:31]} Bg7 {[%emt 0:00:09]} 8. Bf4 {[%emt 0:00:06]} O-O {[%emt 0:03:27]} 9. e3 {[%emt 0:00:25]} a6 {[%emt 0:00:04] 9...Ne8 is setting a new trend.} 10. a4 {[%emt 0:00:08]} Qe7 {[%emt 0:00:33] A61: Modern Benoni: Nf3 without early e4.} 11. Bd3 {[%emt 0:00:14]} Nbd7 {[%emt 0:00:28]} 12. O-O {[%emt 0:00:40]} Nh5 {[%emt 0:04:13] White is slightly better.} 13. Bh2 {[%emt 0:06:42]} f5 {[%emt 0:00:53] was the old line (13...Ne5).} 14. Re1 {[%emt 0:03:09]} Rb8 {[%emt 0:04:16]} 15. Qc2 $146 {[%emt 0:08:28]} (15. Nd2 Ne5 16. Be2 Nf6 17. Kh1 g5 18. f4 Nf7 19. fxg5 Nxg5 20. Bd3 Nd7 21. Nc4 {1-0 Sonis,F (2547)-Lodici,L (2536) ITA-ch 81st Cagliari 2022 (7)}) 15... b6 {[%emt 0:07:24]} 16. Rad1 {[%emt 0:01:17]} Bb7 {[%emt 0:04:48]} 17. Bf1 {[%emt 0:00:27]} Kh8 {[%emt 0:06:20]} 18. Nd2 {[%emt 0:11:36]} Be5 {[%emt 0:06:36]} 19. Bxe5+ {[%emt 0:07:59]} dxe5 {[%emt 0:09:25]} (19... Nxe5 $14 20. f4 Nf7) 20. Nc4 {[%emt 0:05:18]} (20. e4 $16) 20... e4 $14 {[%emt 0:02:33]} 21. Qd2 {[%emt 0:09:22]} Nhf6 {[%emt 0:00:54]} 22. b3 {[%emt 0:07:00]} h5 {[%emt 0:01:18]} 23. d6 {[%emt 0:04:15]} Qg7 {[%emt 0:04:24]} 24. Ne2 {[%emt 0:07:07]} (24. Rb1 $14) 24... g5 {[%emt 0:01:51]} (24... Bd5 $11) 25. Qb2 {[%emt 0:01:15]} (25. Ng3 Qg6 $11) (25. h4 $14) 25... Nd5 {[%emt 0:02:12]} 26. Qxg7+ {[%emt 0:04:23]} Kxg7 {[%emt 0:00:03]} 27. Rc1 {[%emt 0:00:12]} (27. h4 $1 $11) 27... Rf6 {[%emt 0:08:53]} (27... h4 $15) 28. Red1 $11 {[%emt 0:07:19][%cal Oh3h4]} Rd8 {[%emt 0:00:49]} (28... b5 {with more complications.} 29. axb5 axb5 30. Ng3 bxc4 31. Nxh5+ Kg6) 29. Nc3 {[%emt 0:00:43]} Nb4 {[%emt 0:00:06]} 30. Be2 {[%emt 0:00:47]} h4 {[%emt 0:07:23]} 31. Rd2 {[%emt 0:00:05]} Re6 {[%emt 0:00:38]} 32. Rcd1 {[%emt 0:00:20]} Kf6 {[%emt 0:00:29]} 33. Kf1 {[%emt 0:00:56]} Bc6 {[%emt 0:01:47]} 34. Kg1 {[%emt 0:00:06]} Ree8 {[%emt 0:04:32]} 35. Kf1 {[%emt 0:00:32]} Rg8 {[%emt 0:00:24]} 36. Na2 {[%emt 0:04:44]} (36. Kg1 $11) 36... Nxa2 $15 {[%emt 0:01:58]} 37. Rxa2 {[%emt 0:00:02]} g4 {[%emt 0:00:12]} 38. Na3 {[%emt 0:03:14]} (38. hxg4 $1 $11 fxg4 39. Nd2) 38... gxh3 {[%emt 0:00:31]} 39. gxh3 {[%emt 0:00:03]} Ra8 {[%emt 0:00:07]} (39... a5 $17) 40. Raa1 {[%emt 0:02:16]} (40. Nb1 $11 {remains equal.}) 40... Rg6 $17 {[%emt 0:01:04]} 41. Bc4 {[%emt 0:00:16]} ({White should try} 41. Rac1 $1 $15) 41... Ne5 {[%emt 0:00:22]} 42. Ke2 {[%emt 0:01:01]} Bd7 {[%emt 0:03:37]} 43. Bd5 {[%emt 0:00:54]} Rb8 {[%emt 0:00:36]} 44. Nc4 {[%emt 0:01:35]} Nd3 {[%emt 0:00:15]} 45. Rg1 {[%emt 0:01:04] Wards off Rg2} Rxg1 {[%emt 0:00:10][%csl Od3] Strong Square Black (d3)} 46. Rxg1 {[%emt 0:00:05]} b5 {[%emt 0:00:03]} 47. axb5 {[%emt 0:00:41]} axb5 {[%emt 0:00:22]} 48. Na5 {[%emt 0:00:07]} (48. Nd2 $17) 48... Nb4 {[%emt 0:04:09]} (48... Rb6 $19 49. f3 exf3+ (49... Rxd6 50. fxe4 fxe4 51. Bxe4 $15) 50. Bxf3 (50. Kxd3 $2 Rxd6 51. e4 fxe4+ 52. Kxe4 Rxd5 $19) 50... Ne5 (50... Rxd6 $2 51. Nb7 $18)) 49. Bb7 {[%emt 0:00:34]} Be6 {[%emt 0:02:11]} 50. Rd1 {[%emt 0:02:07]} Rd8 $1 {[%emt 0:02:29]} 51. f4 {[%emt 0:01:15]} (51. f3 $17) 51... Nd3 {[%emt 0:03:28]} (51... Bd7 $19 {...Rg8 would now be deadly.} 52. Rc1 Rg8 53. Rxc5 Ke6 54. Re5+ Kxd6 55. Bxe4 fxe4 56. Rxe4 Na2 (56... Rg2+ $2 57. Kf1 $19)) 52. Bc6 {[%emt 0:00:30]} Rb8 {[%emt 0:05:40]} 53. Nb7 $2 {[%emt 0:01:18][%mdl 8192] [#]} (53. d7 $11 c4 (53... Ke7 54. Rg1 $14) 54. bxc4 (54. Nb7 Bxd7 55. Bxd7 Rxb7 $19) 54... bxc4 55. Rb1 (55. Nb7 $2 Bxd7 56. Bxd7 Rxb7 $19)) 53... Bxb3 $2 {[%emt 0:00:30]} (53... c4 $1 $19 {[%cal Rc4c3] and Black stays clearly on top.} 54. bxc4 (54. d7 Bxd7 55. Bxd7 c3 $19) 54... bxc4) 54. d7 {[%emt 0:00:30] and Rg1 should not be overlooked} Bxd1+ 55. Kxd1 {[#]} Ke7 {Weighted Error Value: White=0.36/Black=0.30  Loses game:     	White=1     	---        Missed win:     	---       	Black=1      Mistake:       	White=10    	Black=7      Inaccurate:     	White=6     	Black=9      OK:         	White=9     	Black=16     Best:        	White=5     	Black=3} ({Stronger than} 55... Nf2+ 56. Ke2 Nxh3 57. Bxb5 $14 (57. d8=Q+ Rxd8 58. Nxd8 c4 $11)) (55... b4 $1 $17 56. d8=Q+ Rxd8 57. Nxd8 b3) 0-1

[Event "8th Montevideo Open 2025"]
[Site "Montevideo"]
[Date "2025.02.01"]
[Round "2.2"]
[White "Coro, Lucas"]
[Black "Guerrero, Alvaro"]
[Result "1-0"]
[Annotator "TA"]
[ECO "B06"]
[WhiteElo "2415"]
[BlackElo "2028"]
[PlyCount "113"]
[EventDate "2025.02.01"]
[EventType "swiss"]
[EventCountry "URU"]
[SourceTitle "playchess.com"]
[Source "ChessBase"]
[SourceQuality "1"]
[TimeControl "5400+30"]

{[%evp 9,113,37,38,39,83,76,87,58,64,58,67,52,70,59,71,58,68,67,64,58,71,40,59,6,20,0,89,65,102,78,185,169,220,169,179,179,176,165,171,136,166,164,164,164,187,196,177,144,160,136,189,187,192,185,192,187,176,179,196,194,250,189,201,168,231,231,227,221,218,218,575,579,573,569,575,526,682,608,607,683,681,645,669,641,718,698,767,754,772,765,774,766,791,738,768,741,730,721,681,764,1027,979,860,0,788,737]} 1. Nf3 {[%emt 0:05:40]} g6 {[%emt 0:07:30]} 2. d4 {[%emt 0:00:30]} Bg7 {[%emt 0:00:26]} 3. e4 {[%emt 0:00:43]} d6 {[%emt 0:00:21]} 4. Bd3 {[%emt 0:00:20]} Nd7 {[%emt 0:00:14]} 5. O-O {[%emt 0:01:52]} e5 {[%emt 0:00:15]} 6. c3 {[%emt 0:01:04] B06: Modern Defence.} Nh6 {[%emt 0:02:18]} 7. Nbd2 {[%emt 0:05:42]} f6 $146 {[%emt 0:02:34]} (7... O-O 8. Re1 f6 9. Nf1 Re8 10. h4 Nf8 11. h5 Be6 12. Ng3 Qd7 13. Bd2 exd4 14. cxd4 {1-0 Svetushkin,D (2568)-Bricard,E (2484) FRA-chT Top 16 Gp Haute 2008 (10)}) 8. Bc4 {[%emt 0:04:31] White is better.} Qe7 {[%emt 0:00:36]} 9. Re1 {[%emt 0:02:35]} Nb6 {[%emt 0:01:38]} 10. Bb3 {[%emt 0:02:01]} Nf7 {[%emt 0:00:10]} 11. a4 {[%emt 0:03:44]} a5 {[%emt 0:00:46]} 12. Nf1 {[%emt 0:00:07]} O-O {[%emt 0:01:37]} 13. Be3 {[%emt 0:00:28]} c5 {[%emt 0:07:28]} 14. N1d2 {[%emt 0:06:27]} Kh8 {[%emt 0:03:33]} 15. dxc5 {[%emt 0:04:18]} dxc5 {[%emt 0:00:08]} 16. Bxf7 {[%emt 0:00:44]} (16. Nc4 $14 Nxc4 17. Bxc4) 16... Rxf7 $11 {[%emt 0:00:42]} 17. Qb3 {[%emt 0:00:09]} Nd7 {[%emt 0:02:15]} (17... Qe6 $1 $11) 18. Nc4 $36 {[%emt 0:00:15][%mdl 2048] White is pushing. White stays focused until the end.} Ra6 {[%emt 0:06:44] Against Nd6} 19. Rad1 {[%emt 0:03:23][%cal Oc4d6] White has more active pieces.} Rf8 {[%emt 0:09:25]} (19... Qe6 $16) 20. Qb5 {[%emt 0:02:39]} b6 {[%emt 0:16:33]} (20... Qe6 21. Rd5 (21. Bxc5 $2 Nxc5 22. Ncxe5 fxe5 $19) (21. Nxa5 Re8 $18) 21... Rf7 22. Nxa5 (22. Bxc5 Nxc5 23. Qxc5 Kg8 $16) 22... Bf8) 21. Nd6 {[%emt 0:08:45] [#]} Ra7 {[%emt 0:00:19]} 22. Nxc8 {[%emt 0:00:54]} Rxc8 {[%emt 0:00:06] Black is weak on the light squares} 23. Rd5 {[%emt 0:01:37]} Rcc7 {[%emt 0:01:35]} 24. Red1 {[%emt 0:01:18]} Bf8 {[%emt 0:01:38]} 25. Nd2 {[%emt 0:03:32][%cal Bf3d2,Bd2c4,Bc4a3,Ba3b5][%mdl 32]} Qe6 {[%emt 0:01:08]} 26. Qd3 {[%emt 0:01:30]} Be7 {[%emt 0:04:00]} 27. Nc4 {[%emt 0:00:11]} Nf8 {[%emt 0:04:01]} 28. Qc2 {[%emt 0:00:15]} Kg7 {[%emt 0:01:36]} 29. h3 {[%emt 0:01:13]} Nd7 {[%emt 0:02:11]} (29... Rcb7 $16 30. Qd2 Kg8) 30. Na3 {[%emt 0:00:26]} Rab7 {[%emt 0:00:37]} 31. Nb5 {[%emt 0:01:30]} Rc6 {[%emt 0:00:09]} 32. Qd2 {[%emt 0:02:21]} Nf8 {[%emt 0:00:13]} 33. Bh6+ {[%emt 0:01:15]} Kf7 {[%emt 0:01:06]} 34. Qe2 {[%emt 0:05:38]} c4 {[%emt 0:02:30]} (34... Nd7 $142 35. c4 Nf8) 35. Bxf8 {[%emt 0:02:32]} Kxf8 {[%emt 0:00:32]} 36. R1d2 {[%emt 0:00:36][%cal Bd1d2,Bd2d7,Bd7c7][%mdl 32]} Kg7 {[%emt 0:05:57] [#]} (36... Rc5 {might work better.} 37. Qd1 Rxd5 38. exd5 Qd7) 37. Qd1 $1 $18 {[%emt 0:01:17]} Kf8 {[%emt 0:06:32]} 38. Rd7 {[%emt 0:06:04]} Rxd7 {[%emt 0:01:00]} 39. Rxd7 {[%emt 0:00:09]} Ke8 $2 {[%emt 0:02:31]} (39... Rc8 {is more resistant.} 40. Qd2 g5) 40. Nc7+ {[%emt 0:01:02]} Rxc7 {[%emt 0:00:03]} 41. Rxc7 {[%emt 0:00:05][%mdl 4096] Endgame KQR-KQB} h5 {[%emt 0:01:28][%cal Bh7h5,Bh5h4][%mdl 32]} 42. Rb7 {[%emt 0:00:35]} h4 {[%emt 0:01:15]} 43. Kf1 {[%emt 0:00:31]} Qc6 {[%emt 0:03:31]} 44. Qd5 {[%emt 0:02:17]} Qxd5 {[%emt 0:00:07]} 45. exd5 {[%emt 0:00:07] KR-KB} Bc5 {[%emt 0:00:05]} 46. Rh7 {[%emt 0:00:21]} g5 {[%emt 0:00:07]} 47. Ke2 {[%emt 0:00:47]} Be7 {[%emt 0:00:27]} 48. Kf3 {[%emt 0:00:16]} f5 {[%emt 0:01:03]} 49. Rh6 {[%emt 0:00:12]} e4+ {[%emt 0:00:20]} 50. Ke2 {[%emt 0:00:08]} Bd8 {[%emt 0:00:53]} 51. Rc6 {[%emt 0:00:34]} Kd7 {[%emt 0:00:06]} 52. Rxc4 {[%emt 0:00:23]} Kd6 {[%emt 0:00:04]} 53. b3 {[%emt 0:00:57]} Ke5 {[%emt 0:01:10]} 54. Rc8 {[%emt 0:00:05]} Bf6 {[%emt 0:00:23]} 55. Rc6 {[%emt 0:00:05] aiming for Re6+.} Bd8 {[%emt 0:00:03]} 56. Rc8 $2 {[%emt 0:00:42]} (56. c4 $18) 56... Be7 $2 {[%emt 0:00:19][%mdl 8192]} (56... Bf6 $11 57. Rf8 Be7) 57. Re8 {[%emt 0:21:38] Weighted Error Value: White=0.24 (precise) /Black=0.49  Mistake:       	White=1     	Black=7      Inaccurate:     	White=2     	Black=1      OK:         	White=17    	Black=11     Best:        	---       	Black=1} 1-0